[Event "Titled Tuesday Blitz August 1 Early 2023"]
[White "Hakobyan, Aram"]
[Black "Khachiyan, Melikset"]
[WhiteFideId "13306677"]
[BlackFideId "13300512"]
[WhiteElo "2950"]
[BlackElo "2695"]
[Result "1/2-1/2"]
[Round "3"]
[TimeControl "180+1"]
[Date "2023.08.01"]
[WhiteClock "0:00:03"]
[BlackClock "0:00:15"]
[Board "16"]

1. d4 {[%clk 0:03:00]}  Nf6 {[%clk 0:02:57]} 2. c4 {[%clk 0:03:01]}  c6 {[%clk 0:02:56]} 3. Bf4 {[%clk 0:03:00]}  d5 {[%clk 0:02:54]} 4. e3 {[%clk 0:03:00]}  g6 {[%clk 0:02:48]} 5. Nc3 {[%clk 0:03:00]}  Bg7 {[%clk 0:02:48]} 6. Nf3 {[%clk 0:02:59]}  O-O {[%clk 0:02:48]} 7. Be2 {[%clk 0:02:56]}  Bg4 {[%clk 0:02:47]} 8. Qb3 {[%clk 0:02:54]}  Qb6 {[%clk 0:02:46]} 9. O-O {[%clk 0:02:50]}  Nbd7 {[%clk 0:02:33]} 10. cxd5 {[%clk 0:02:39]}  Qxb3 {[%clk 0:02:31]} 11. axb3 {[%clk 0:02:40]}  Nxd5 {[%clk 0:02:30]} 12. Bg3 {[%clk 0:02:37]}  N7b6 {[%clk 0:02:23]} 13. h3 {[%clk 0:02:34]}  Be6 {[%clk 0:02:18]} 14. Ne4 {[%clk 0:02:27]}  Nd7 {[%clk 0:02:07]} 15. Rfc1 {[%clk 0:02:17]}  h6 {[%clk 0:02:07]} 16. Ned2 {[%clk 0:02:09]}  f5 {[%clk 0:02:06]} 17. Bh2 {[%clk 0:02:06]}  Bf7 {[%clk 0:02:01]} 18. Nc4 {[%clk 0:02:06]}  a6 {[%clk 0:01:40]} 19. Na5 {[%clk 0:02:05]}  Ra7 {[%clk 0:01:40]} 20. Nc4 {[%clk 0:01:54]}  Re8 {[%clk 0:01:39]} 21. Nfe5 {[%clk 0:01:52]}  Nxe5 {[%clk 0:01:35]} 22. Bxe5 {[%clk 0:01:53]}  Bf8 {[%clk 0:01:14]} 23. Kf1 {[%clk 0:01:17]}  Rd8 {[%clk 0:01:14]} 24. g3 {[%clk 0:01:14]}  Raa8 {[%clk 0:01:14]} 25. h4 {[%clk 0:01:12]}  e6 {[%clk 0:01:15]} 26. Na5 {[%clk 0:01:12]}  Rd7 {[%clk 0:01:13]} 27. Nc4 {[%clk 0:01:12]}  g5 {[%clk 0:01:07]} 28. hxg5 {[%clk 0:01:12]}  hxg5 {[%clk 0:01:08]} 29. Kg2 {[%clk 0:01:12]}  g4 {[%clk 0:01:06]} 30. Rh1 {[%clk 0:01:11]}  Bg7 {[%clk 0:00:58]} 31. Bxg7 {[%clk 0:01:11]}  Kxg7 {[%clk 0:00:59]} 32. Ne5 {[%clk 0:01:11]}  Rc7 {[%clk 0:00:58]} 33. Bc4 {[%clk 0:01:11]}  a5 {[%clk 0:00:55]} 34. Bxd5 {[%clk 0:01:02]}  cxd5 {[%clk 0:00:53]} 35. Rhc1 {[%clk 0:00:59]}  Rac8 {[%clk 0:00:31]} 36. Rxc7 {[%clk 0:00:59]}  Rxc7 {[%clk 0:00:32]} 37. Rxa5 {[%clk 0:00:59]}  Be8 {[%clk 0:00:33]} 38. b4 {[%clk 0:00:36]}  Kf6 {[%clk 0:00:32]} 39. Rc5 {[%clk 0:00:36]}  Rh7 {[%clk 0:00:24]} 40. Kf1 {[%clk 0:00:26]}  b6 {[%clk 0:00:25]} 41. Rc8 {[%clk 0:00:23]}  Bb5+ {[%clk 0:00:25]} 42. Ke1 {[%clk 0:00:24]}  Rh1+ {[%clk 0:00:22]} 43. Kd2 {[%clk 0:00:24]}  Rf1 {[%clk 0:00:23]} 44. Rc7 {[%clk 0:00:21]}  Rxf2+ {[%clk 0:00:22]} 45. Ke1 {[%clk 0:00:22]}  Rxb2 {[%clk 0:00:21]} 46. Rf7+ {[%clk 0:00:19]}  Kg5 {[%clk 0:00:21]} 47. Rg7+ {[%clk 0:00:19]}  Kh5 {[%clk 0:00:19]} 48. Rb7 {[%clk 0:00:20]}  Rxb4 {[%clk 0:00:18]} 49. Rxb6 {[%clk 0:00:20]}  Rb1+ {[%clk 0:00:17]} 50. Kd2 {[%clk 0:00:20]}  Bd3 {[%clk 0:00:16]} 51. Rxb1 {[%clk 0:00:16]}  Bxb1 {[%clk 0:00:16]} 52. Kc3 {[%clk 0:00:17]}  Kg5 {[%clk 0:00:15]} 53. Kb4 {[%clk 0:00:14]}  f4 {[%clk 0:00:15]} 54. exf4+ {[%clk 0:00:12]}  Kf5 {[%clk 0:00:16]} 55. Kc3 {[%clk 0:00:09]}  Ke4 {[%clk 0:00:16]} 56. Nxg4 {[%clk 0:00:03]}  Kf3 {[%clk 0:00:17]} 57. Ne5+ {[%clk 0:00:03]}  Kxg3 {[%clk 0:00:17]} 58. Kb4 {[%clk 0:00:02]}  Kxf4 {[%clk 0:00:17]} 59. Kc5 {[%clk 0:00:03]}  Bf5 {[%clk 0:00:16]} 60. Nd7 {[%clk 0:00:03]}  Ke4 {[%clk 0:00:16]} 61. Ne5 {[%clk 0:00:03]}  Ke3 {[%clk 0:00:16]} 62. Nc6 {[%clk 0:00:04]}  Ke4 {[%clk 0:00:17]} 63. Kd6 {[%clk 0:00:04]}  Kd3 {[%clk 0:00:17]} 64. Ke5 {[%clk 0:00:04]}  Kc4 {[%clk 0:00:17]} 65. Ne7 {[%clk 0:00:04]}  Bh3 {[%clk 0:00:17]} 66. Ng6 {[%clk 0:00:04]}  Bg4 {[%clk 0:00:16]} 67. Nf4 {[%clk 0:00:05]}  Bf5 {[%clk 0:00:16]} 68. Ng2 {[%clk 0:00:05]}  Bh3 {[%clk 0:00:17]} 69. Nh4 {[%clk 0:00:04]}  Bg4 {[%clk 0:00:17]} 70. Ng6 {[%clk 0:00:04]}  Bf5 {[%clk 0:00:17]} 71. Nf4 {[%clk 0:00:03]}  Bg4 {[%clk 0:00:17]} 72. Ng6 {[%clk 0:00:03]}  Bf5 {[%clk 0:00:17]} 73. Ne7 {[%clk 0:00:04]}  Bh3 {[%clk 0:00:18]} 74. Nc8 {[%clk 0:00:04]}  Bg4 {[%clk 0:00:17]} 75. Nd6+ {[%clk 0:00:05]}  Kd3 {[%clk 0:00:17]} 76. Nb7 {[%clk 0:00:04]}  Kc4 {[%clk 0:00:18]} 77. Nc5 {[%clk 0:00:04]}  Bh3 {[%clk 0:00:17]} 78. Nd7 {[%clk 0:00:04]}  Bg4 {[%clk 0:00:16]} 79. Nf6 {[%clk 0:00:03]}  Bf5 {[%clk 0:00:17]} 80. Ne8 {[%clk 0:00:03]}  Bh3 {[%clk 0:00:17]} 81. Ng7 {[%clk 0:00:04]}  Kd3 {[%clk 0:00:15]} 82. Nh5 {[%clk 0:00:04]}  Kc4 {[%clk 0:00:15]} 83. Nf4 {[%clk 0:00:05]}  Bf5 {[%clk 0:00:15]} 84. Ng2 {[%clk 0:00:05]}  Bh3 {[%clk 0:00:15]} 85. Nf4 {[%clk 0:00:03]}  Bf5 {[%clk 0:00:15]} 1/2-1/2


[Site "https://www.chess.com"]

[Event "Titled Tuesday Blitz August 1 Early 2023"]
[White "Voege, Tobias"]
[Black "Terry, Renato"]
[WhiteFideId "1270513"]
[BlackFideId "3803457"]
[WhiteElo "2681"]
[BlackElo "2948"]
[Result "0-1"]
[Round "3"]
[TimeControl "180+1"]
[Date "2023.08.01"]
[WhiteClock "0:00:14"]
[BlackClock "0:01:09"]
[Board "17"]

1. d4 {[%clk 0:03:00]}  e6 {[%clk 0:02:59]} 2. c4 {[%clk 0:03:01]}  Bb4+ {[%clk 0:02:59]} 3. Bd2 {[%clk 0:03:01]}  Bxd2+ {[%clk 0:02:57]} 4. Qxd2 {[%clk 0:03:01]}  Nf6 {[%clk 0:02:58]} 5. Nc3 {[%clk 0:03:00]}  d6 {[%clk 0:02:58]} 6. e4 {[%clk 0:03:00]}  e5 {[%clk 0:02:59]} 7. Nf3 {[%clk 0:02:58]}  Nc6 {[%clk 0:02:50]} 8. dxe5 {[%clk 0:02:50]}  Nxe5 {[%clk 0:02:50]} 9. Nxe5 {[%clk 0:02:49]}  dxe5 {[%clk 0:02:51]} 10. Qxd8+ {[%clk 0:02:49]}  Kxd8 {[%clk 0:02:52]} 11. O-O-O+ {[%clk 0:02:48]}  Bd7 {[%clk 0:02:42]} 12. Be2 {[%clk 0:02:45]}  c6 {[%clk 0:02:40]} 13. Rd2 {[%clk 0:02:38]}  Kc7 {[%clk 0:02:38]} 14. Rhd1 {[%clk 0:02:33]}  Be6 {[%clk 0:02:39]} 15. c5 {[%clk 0:02:20]}  Nd7 {[%clk 0:02:32]} 16. b4 {[%clk 0:02:16]}  a5 {[%clk 0:02:28]} 17. a3 {[%clk 0:02:08]}  axb4 {[%clk 0:02:28]} 18. axb4 {[%clk 0:02:08]}  Ra3 {[%clk 0:02:28]} 19. Nb1 {[%clk 0:02:05]}  Ra4 {[%clk 0:02:21]} 20. Rb2 {[%clk 0:02:00]}  Rha8 {[%clk 0:02:13]} 21. g3 {[%clk 0:01:57]}  Nf6 {[%clk 0:02:04]} 22. Nc3 {[%clk 0:01:53]}  Ra3 {[%clk 0:02:00]} 23. Kc2 {[%clk 0:01:48]}  Rxc3+ {[%clk 0:01:47]} 24. Kxc3 {[%clk 0:01:49]}  Nxe4+ {[%clk 0:01:48]} 25. Kc2 {[%clk 0:01:49]}  Nxf2 {[%clk 0:01:48]} 26. Rf1 {[%clk 0:01:43]}  Ne4 {[%clk 0:01:49]} 27. Bd3 {[%clk 0:01:33]}  Nf6 {[%clk 0:01:49]} 28. Re1 {[%clk 0:01:28]}  e4 {[%clk 0:01:49]} 29. Bf1 {[%clk 0:01:26]}  Nd5 {[%clk 0:01:48]} 30. Bg2 {[%clk 0:01:11]}  f5 {[%clk 0:01:46]} 31. b5 {[%clk 0:01:04]}  Ra3 {[%clk 0:01:43]} 32. Bh3 {[%clk 0:00:49]}  Ne3+ {[%clk 0:01:35]} 33. Kb1 {[%clk 0:00:45]}  Nc4 {[%clk 0:01:30]} 34. b6+ {[%clk 0:00:40]}  Kd7 {[%clk 0:01:29]} 35. Rf2 {[%clk 0:00:32]}  g6 {[%clk 0:01:26]} 36. Bf1 {[%clk 0:00:28]}  Ne5 {[%clk 0:01:16]} 37. Rd2+ {[%clk 0:00:25]}  Ke7 {[%clk 0:01:17]} 38. Rc1 {[%clk 0:00:20]}  e3 {[%clk 0:01:10]} 39. Rb2 {[%clk 0:00:19]}  g5 {[%clk 0:01:10]} 40. Be2 {[%clk 0:00:18]}  f4 {[%clk 0:01:09]} 41. Rf1 {[%clk 0:00:14]}  Bf5+ {[%clk 0:01:09]} 0-1


[Site "https://www.chess.com"]

[Event "Titled Tuesday Blitz August 1 Early 2023"]
[White "Aravindh, Chithambaram VR."]
[Black "benny_aizenberg"]
[WhiteFideId "5072786"]
[WhiteElo "2910"]
[BlackElo "2664"]
[Result "1-0"]
[Round "3"]
[TimeControl "180+1"]
[Date "2023.08.01"]
[WhiteClock "0:00:08"]
[BlackClock "0:00:07"]
[Board "23"]

1. e4 {[%clk 0:03:00]}  c5 {[%clk 0:02:56]} 2. Nf3 {[%clk 0:02:58]}  e6 {[%clk 0:02:54]} 3. g3 {[%clk 0:02:55]}  Nc6 {[%clk 0:02:51]} 4. Bg2 {[%clk 0:02:54]}  d5 {[%clk 0:02:50]} 5. exd5 {[%clk 0:02:54]}  exd5 {[%clk 0:02:49]} 6. O-O {[%clk 0:02:53]}  Nf6 {[%clk 0:02:49]} 7. d4 {[%clk 0:02:53]}  Be7 {[%clk 0:02:42]} 8. dxc5 {[%clk 0:02:52]}  Bxc5 {[%clk 0:02:42]} 9. Bg5 {[%clk 0:02:50]}  O-O {[%clk 0:02:40]} 10. Nbd2 {[%clk 0:02:36]}  h6 {[%clk 0:02:37]} 11. Bf4 {[%clk 0:02:05]}  Nh5 {[%clk 0:02:07]} 12. Be5 {[%clk 0:01:28]}  Re8 {[%clk 0:01:41]} 13. Nb3 {[%clk 0:01:23]}  Bxf2+ {[%clk 0:01:30]} 14. Rxf2 {[%clk 0:01:24]}  Nxe5 {[%clk 0:01:30]} 15. Nxe5 {[%clk 0:01:25]}  Rxe5 {[%clk 0:01:30]} 16. c4 {[%clk 0:01:26]}  Nf6 {[%clk 0:01:24]} 17. cxd5 {[%clk 0:00:59]}  Qb6 {[%clk 0:01:06]} 18. h3 {[%clk 0:00:19]}  Ne4 {[%clk 0:00:50]} 19. Bxe4 {[%clk 0:00:14]}  Rxe4 {[%clk 0:00:51]} 20. Qf3 {[%clk 0:00:11]}  Qg6 {[%clk 0:00:33]} 21. Kh2 {[%clk 0:00:06]}  Re5 {[%clk 0:00:26]} 22. Rd1 {[%clk 0:00:04]}  Rf5 {[%clk 0:00:25]} 23. Qe3 {[%clk 0:00:04]}  Rxf2+ {[%clk 0:00:24]} 24. Qxf2 {[%clk 0:00:05]}  Bd7 {[%clk 0:00:24]} 25. Nc5 {[%clk 0:00:04]}  Qb6 {[%clk 0:00:21]} 26. Rd2 {[%clk 0:00:04]}  Bb5 {[%clk 0:00:19]} 27. a4 {[%clk 0:00:03]}  Be8 {[%clk 0:00:18]} 28. d6 {[%clk 0:00:03]}  Rd8 {[%clk 0:00:16]} 29. Qd4 {[%clk 0:00:01]}  Bc6 {[%clk 0:00:14]} 30. b4 {[%clk 0:00:02]}  a6 {[%clk 0:00:14]} 31. g4 {[%clk 0:00:01]}  Kh7 {[%clk 0:00:13]} 32. Kg3 {[%clk 0:00:02]}  g6 {[%clk 0:00:14]} 33. h4 {[%clk 0:00:02]}  Be8 {[%clk 0:00:14]} 34. Qf6 {[%clk 0:00:02]}  Qxb4 {[%clk 0:00:10]} 35. Qxd8 {[%clk 0:00:01]}  Qxd2 {[%clk 0:00:08]} 36. Qxe8 {[%clk 0:00:02]}  Qxd6+ {[%clk 0:00:08]} 37. Kf3 {[%clk 0:00:02]}  Qxc5 {[%clk 0:00:06]} 38. Qxf7+ {[%clk 0:00:02]}  Kh8 {[%clk 0:00:06]} 39. Qxb7 {[%clk 0:00:02]}  Qc3+ {[%clk 0:00:06]} 40. Kg2 {[%clk 0:00:02]}  Qd2+ {[%clk 0:00:06]} 41. Kf3 {[%clk 0:00:03]}  Qd1+ {[%clk 0:00:05]} 42. Kf4 {[%clk 0:00:02]}  Qd4+ {[%clk 0:00:05]} 43. Qe4 {[%clk 0:00:03]}  Qf2+ {[%clk 0:00:05]} 44. Ke5 {[%clk 0:00:03]}  Qxh4 {[%clk 0:00:05]} 45. Qxg6 {[%clk 0:00:03]}  Qe1+ {[%clk 0:00:05]} 46. Kd6 {[%clk 0:00:03]}  Qb4+ {[%clk 0:00:05]} 47. Kc7 {[%clk 0:00:03]}  Qc5+ {[%clk 0:00:04]} 48. Qc6 {[%clk 0:00:03]}  Qe7+ {[%clk 0:00:03]} 49. Kb6 {[%clk 0:00:03]}  Qb4+ {[%clk 0:00:03]} 50. Kxa6 {[%clk 0:00:03]}  Kg7 {[%clk 0:00:02]} 51. Qd7+ {[%clk 0:00:03]}  Kf6 {[%clk 0:00:02]} 52. a5 {[%clk 0:00:03]}  Qc4+ {[%clk 0:00:01]} 53. Kb6 {[%clk 0:00:04]}  Qb4+ {[%clk 0:00:02]} 54. Ka6 {[%clk 0:00:03]}  Qc4+ {[%clk 0:00:02]} 55. Qb5 {[%clk 0:00:03]}  Qxg4 {[%clk 0:00:02]} 56. Qc6+ {[%clk 0:00:03]}  Kg5 {[%clk 0:00:02]} 57. Kb6 {[%clk 0:00:03]}  Qb4+ {[%clk 0:00:02]} 58. Qb5+ {[%clk 0:00:03]}  Qxb5+ {[%clk 0:00:02]} 59. Kxb5 {[%clk 0:00:04]}  h5 {[%clk 0:00:03]} 60. a6 {[%clk 0:00:05]}  h4 {[%clk 0:00:03]} 61. a7 {[%clk 0:00:06]}  h3 {[%clk 0:00:04]} 62. a8=Q {[%clk 0:00:06]}  Kg4 {[%clk 0:00:05]} 63. Qh1 {[%clk 0:00:06]}  Kg3 {[%clk 0:00:05]} 64. Kc4 {[%clk 0:00:07]}  h2 {[%clk 0:00:06]} 65. Kd3 {[%clk 0:00:08]}  Kf2 {[%clk 0:00:06]} 66. Qxh2+ {[%clk 0:00:07]}  Kf1 {[%clk 0:00:07]} 67. Ke3 {[%clk 0:00:07]}  Ke1 {[%clk 0:00:07]} 68. Qh1# {[%clk 0:00:08]} 1-0


[Site "https://www.chess.com"]

[Event "Titled Tuesday Blitz August 1 Early 2023"]
[White "JeRoma71"]
[Black "Lewicki, Miroslaw"]
[BlackFideId "1113380"]
[WhiteElo "2891"]
[BlackElo "2649"]
[Result "1/2-1/2"]
[Round "3"]
[TimeControl "180+1"]
[Date "2023.08.01"]
[WhiteClock "0:00:08"]
[BlackClock "0:00:04"]
[Board "25"]

1. Nf3 {[%clk 0:02:59]}  c5 {[%clk 0:02:57]} 2. g3 {[%clk 0:02:59]}  Nf6 {[%clk 0:02:58]} 3. Bg2 {[%clk 0:02:59]}  g6 {[%clk 0:02:59]} 4. O-O {[%clk 0:03:00]}  Bg7 {[%clk 0:02:59]} 5. c4 {[%clk 0:03:00]}  O-O {[%clk 0:03:00]} 6. Nc3 {[%clk 0:03:00]}  d5 {[%clk 0:02:58]} 7. cxd5 {[%clk 0:02:53]}  Nxd5 {[%clk 0:02:58]} 8. d3 {[%clk 0:02:53]}  Nxc3 {[%clk 0:02:55]} 9. bxc3 {[%clk 0:02:54]}  Bxc3 {[%clk 0:02:55]} 10. Bh6 {[%clk 0:02:54]}  Bg7 {[%clk 0:02:43]} 11. Bxg7 {[%clk 0:02:52]}  Kxg7 {[%clk 0:02:44]} 12. Rb1 {[%clk 0:02:53]}  Nc6 {[%clk 0:02:43]} 13. Qa4 {[%clk 0:02:52]}  Qd6 {[%clk 0:02:42]} 14. Rfc1 {[%clk 0:02:50]}  b6 {[%clk 0:02:35]} 15. d4 {[%clk 0:02:45]}  Bd7 {[%clk 0:01:50]} 16. dxc5 {[%clk 0:02:44]}  bxc5 {[%clk 0:01:51]} 17. Qc4 {[%clk 0:02:30]}  Rab8 {[%clk 0:01:35]} 18. e3 {[%clk 0:02:26]}  Be6 {[%clk 0:01:29]} 19. Qc3+ {[%clk 0:02:26]}  f6 {[%clk 0:01:29]} 20. a3 {[%clk 0:02:23]}  Rxb1 {[%clk 0:01:19]} 21. Rxb1 {[%clk 0:02:23]}  Rc8 {[%clk 0:01:19]} 22. Ng5 {[%clk 0:02:18]}  Bg8 {[%clk 0:01:16]} 23. Ne4 {[%clk 0:02:15]}  Qe5 {[%clk 0:01:08]} 24. Qxc5 {[%clk 0:02:11]}  Qxc5 {[%clk 0:01:07]} 25. Nxc5 {[%clk 0:02:11]}  Ne5 {[%clk 0:01:08]} 26. Rc1 {[%clk 0:01:59]}  Nc4 {[%clk 0:00:54]} 27. Nd3 {[%clk 0:01:48]}  Rd8 {[%clk 0:00:53]} 28. Nb4 {[%clk 0:01:46]}  Nxa3 {[%clk 0:00:51]} 29. Nc6 {[%clk 0:01:45]}  Rd7 {[%clk 0:00:51]} 30. h4 {[%clk 0:01:39]}  Rc7 {[%clk 0:00:48]} 31. Ra1 {[%clk 0:01:38]}  Nb5 {[%clk 0:00:47]} 32. Ra5 {[%clk 0:01:35]}  Bc4 {[%clk 0:00:46]} 33. g4 {[%clk 0:01:30]}  e5 {[%clk 0:00:43]} 34. g5 {[%clk 0:01:27]}  Kf7 {[%clk 0:00:37]} 35. Kh2 {[%clk 0:01:26]}  Ke6 {[%clk 0:00:33]} 36. Kg3 {[%clk 0:01:25]}  f5 {[%clk 0:00:30]} 37. f4 {[%clk 0:01:23]}  e4 {[%clk 0:00:24]} 38. Ne5 {[%clk 0:01:18]}  Nd6 {[%clk 0:00:20]} 39. h5 {[%clk 0:01:13]}  gxh5 {[%clk 0:00:19]} 40. Bh3 {[%clk 0:01:13]}  Bb5 {[%clk 0:00:19]} 41. Kh4 {[%clk 0:01:04]}  a6 {[%clk 0:00:19]} 42. Ra3 {[%clk 0:00:58]}  Rc1 {[%clk 0:00:16]} 43. Kg3 {[%clk 0:00:49]}  Rh1 {[%clk 0:00:13]} 44. Kg2 {[%clk 0:00:44]}  Re1 {[%clk 0:00:12]} 45. Rc3 {[%clk 0:00:39]}  h4 {[%clk 0:00:10]} 46. g6 {[%clk 0:00:36]}  hxg6 {[%clk 0:00:09]} 47. Nxg6 {[%clk 0:00:37]}  Nc4 {[%clk 0:00:09]} 48. Kf2 {[%clk 0:00:36]}  Rh1 {[%clk 0:00:05]} 49. Bg2 {[%clk 0:00:33]}  Ra1 {[%clk 0:00:03]} 50. Nxh4 {[%clk 0:00:33]}  Ra2+ {[%clk 0:00:04]} 51. Kg1 {[%clk 0:00:23]}  Re2 {[%clk 0:00:04]} 52. Bf1 {[%clk 0:00:23]}  Rxe3 {[%clk 0:00:04]} 53. Rxc4 {[%clk 0:00:23]}  Bxc4 {[%clk 0:00:02]} 54. Bxc4+ {[%clk 0:00:24]}  Kf6 {[%clk 0:00:03]} 55. Bxa6 {[%clk 0:00:23]}  Rh3 {[%clk 0:00:03]} 56. Ng2 {[%clk 0:00:22]}  Kg6 {[%clk 0:00:02]} 57. Kf2 {[%clk 0:00:22]}  Ra3 {[%clk 0:00:03]} 58. Be2 {[%clk 0:00:20]}  Kf6 {[%clk 0:00:02]} 59. Ne3 {[%clk 0:00:20]}  Ra2 {[%clk 0:00:02]} 60. Ke1 {[%clk 0:00:20]}  Ra1+ {[%clk 0:00:02]} 61. Bd1 {[%clk 0:00:19]}  Ra2 {[%clk 0:00:03]} 62. Bc2 {[%clk 0:00:15]}  Ra3 {[%clk 0:00:03]} 63. Ke2 {[%clk 0:00:15]}  Ra2 {[%clk 0:00:03]} 64. Kd2 {[%clk 0:00:15]}  Ra3 {[%clk 0:00:03]} 65. Bb1 {[%clk 0:00:13]}  Ra1 {[%clk 0:00:03]} 66. Kc2 {[%clk 0:00:12]}  Ra3 {[%clk 0:00:03]} 67. Kd2 {[%clk 0:00:12]}  Ra1 {[%clk 0:00:03]} 68. Bc2 {[%clk 0:00:13]}  Rh1 {[%clk 0:00:03]} 69. Kc3 {[%clk 0:00:10]}  Rh3 {[%clk 0:00:03]} 70. Kd4 {[%clk 0:00:10]}  Rf3 {[%clk 0:00:04]} 71. Bd1 {[%clk 0:00:10]}  Rxf4 {[%clk 0:00:03]} 72. Nd5+ {[%clk 0:00:10]}  Kg5 {[%clk 0:00:04]} 73. Nxf4 {[%clk 0:00:10]}  Kxf4 {[%clk 0:00:05]} 74. Bh5 {[%clk 0:00:08]}  e3 {[%clk 0:00:04]} 75. Kd3 {[%clk 0:00:08]}  Ke5 {[%clk 0:00:03]} 76. Kxe3 {[%clk 0:00:08]}  f4+ {[%clk 0:00:04]} 77. Kf3 {[%clk 0:00:08]}  Kf6 {[%clk 0:00:04]} 78. Kxf4 {[%clk 0:00:08]} 1/2-1/2


[Site "https://www.chess.com"]

[Event "Titled Tuesday Blitz August 1 Early 2023"]
[White "Harsh Suresh"]
[Black "Weishaeutel, Moritz"]
[WhiteFideId "45018464"]
[BlackFideId "12967300"]
[WhiteElo "2888"]
[BlackElo "2647"]
[Result "1-0"]
[Round "3"]
[TimeControl "180+1"]
[Date "2023.08.01"]
[WhiteClock "0:00:03"]
[BlackClock "0:00:00"]
[Board "26"]

1. e4 {[%clk 0:03:00]}  e5 {[%clk 0:03:00]} 2. Nf3 {[%clk 0:03:00]}  Nf6 {[%clk 0:03:00]} 3. d4 {[%clk 0:02:58]}  Nxe4 {[%clk 0:02:59]} 4. Bd3 {[%clk 0:02:57]}  d5 {[%clk 0:03:00]} 5. Nxe5 {[%clk 0:02:57]}  Nd7 {[%clk 0:03:00]} 6. O-O {[%clk 0:02:50]}  Bd6 {[%clk 0:02:51]} 7. Nxd7 {[%clk 0:02:45]}  Bxd7 {[%clk 0:02:52]} 8. Nd2 {[%clk 0:02:45]}  Nxd2 {[%clk 0:02:48]} 9. Bxd2 {[%clk 0:02:38]}  O-O {[%clk 0:02:18]} 10. Qh5 {[%clk 0:02:36]}  g6 {[%clk 0:02:19]} 11. Qxd5 {[%clk 0:02:22]}  Qh4 {[%clk 0:01:47]} 12. g3 {[%clk 0:02:17]}  Qh3 {[%clk 0:01:45]} 13. Qxb7 {[%clk 0:02:01]}  c6 {[%clk 0:01:30]} 14. Rfb1 {[%clk 0:01:40]}  Rfb8 {[%clk 0:00:53]} 15. Qa6 {[%clk 0:01:37]}  Rb6 {[%clk 0:00:47]} 16. Qa5 {[%clk 0:01:21]}  Rab8 {[%clk 0:00:47]} 17. b3 {[%clk 0:01:15]}  Rb5 {[%clk 0:00:16]} 18. Bf1 {[%clk 0:01:06]}  Qh5 {[%clk 0:00:10]} 19. Qc3 {[%clk 0:00:44]}  Bf5 {[%clk 0:00:09]} 20. Re1 {[%clk 0:00:37]}  Bb4 {[%clk 0:00:07]} 21. Qe3 {[%clk 0:00:36]}  Bxd2 {[%clk 0:00:07]} 22. Qxd2 {[%clk 0:00:37]}  R5b7 {[%clk 0:00:08]} 23. Bg2 {[%clk 0:00:36]}  Rd7 {[%clk 0:00:07]} 24. Bxc6 {[%clk 0:00:34]}  Rd6 {[%clk 0:00:08]} 25. Bg2 {[%clk 0:00:34]}  Rbd8 {[%clk 0:00:08]} 26. c3 {[%clk 0:00:35]}  Bg4 {[%clk 0:00:08]} 27. Qf4 {[%clk 0:00:34]}  R6d7 {[%clk 0:00:03]} 28. Re5 {[%clk 0:00:34]}  Bf5 {[%clk 0:00:02]} 29. h3 {[%clk 0:00:24]}  f6 {[%clk 0:00:02]} 30. Re3 {[%clk 0:00:15]}  Bxh3 {[%clk 0:00:02]} 31. Bxh3 {[%clk 0:00:12]}  Qxh3 {[%clk 0:00:03]} 32. Rae1 {[%clk 0:00:12]}  Rd5 {[%clk 0:00:02]} 33. Qc7 {[%clk 0:00:05]}  R5d7 {[%clk 0:00:00]} 34. Qf4 {[%clk 0:00:03]} 1-0


[Site "https://www.chess.com"]